[Event "Chinese Team-ch Men 2025"]
[Site "Zhang Jiakou Hebei"]
[Date "2025.04.29"]
[Round "5.26"]
[White "Qu, Haoming"]
[Black "Fan, Jingyi"]
[Result "1/2-1/2"]
[Annotator "RC"]
[ECO "B22"]
[WhiteElo "2066"]
[BlackElo "2175"]
[PlyCount "129"]
[EventDate "2025.04.26"]
[EventType "team-tourn"]
[EventCountry "CHN"]
[SourceTitle "playchess.com"]
[Source "ChessBase"]
[SourceQuality "1"]
[TimeControl "5400+30"]

1. e4 {[%emt 0:00:03]} c5 {[%emt 0:00:08]} 2. Nf3 {[%emt 0:00:11]} e6 {[%emt 0:00:07]} 3. c3 {[%emt 0:00:04]} d5 {[%emt 0:00:08]} 4. exd5 {[%emt 0:00:06]} Qxd5 {[%emt 0:00:04]} 5. d4 {[%emt 0:00:05]} Nf6 {[%emt 0:00:21]} 6. Na3 {[%emt 0:00:12]} Nc6 {[%emt 0:00:17]} 7. Be3 {[%emt 0:00:08]} cxd4 {[%emt 0:00:13]} 8. Nb5 {[%emt 0:00:04]} Qd7 {[%emt 0:00:56]} 9. Nbxd4 {[%emt 0:00:09]} Be7 {[%emt 0:00:30]} 10. Nxc6 {[%emt 0:00:08]} Qxc6 {[%emt 0:00:06]} 11. Ne5 {[%emt 0:00:07]} Qe4 {[%emt 0:00:47]} 12. Qd4 {[%emt 0:00:12]} Qxd4 {[%emt 0:00:10]} 13. Bxd4 {[%emt 0:00:05]} Nd5 {[%emt 0:00:07]} 14. Bb5+ {[%emt 0:02:25]} Kf8 {[%emt 0:00:08]} 15. O-O-O {[%emt 0:00:08]} f6 {[%emt 0:00:13]} 16. Nd3 {[%emt 0:00:19]} Kf7 {[%emt 0:00:19]} 17. Rhe1 {[%emt 0:00:25]} Rd8 {[%emt 0:01:18]} 18. Bc5 {[%emt 0:07:38]} Nc7 {[%emt 0:41:28]} 19. Bxe7 {[%emt 0:00:32]} Kxe7 {[%emt 0:00:06]} 20. Ba4 {[%emt 0:00:25]} b5 {[%emt 0:06:09]} 21. Bb3 {[%emt 0:03:17]} Bb7 {[%emt 0:01:12]} 22. Nc5 {[%emt 0:07:06]} Rxd1+ {[%emt 0:00:48]} 23. Rxd1 {[%emt 0:00:35]} Bd5 {[%emt 0:02:55]} 24. Re1 {[%emt 0:01:55]} Rd8 {[%emt 0:02:20]} 25. Kc2 {[%emt 0:27:38]} g5 {[%emt 0:07:53]} 26. Bxd5 {[%emt 0:13:49]} Rxd5 {[%emt 0:00:08]} 27. Nb3 {[%emt 0:00:04]} f5 {[%emt 0:09:57]} 28. g3 {[%emt 0:16:05]} e5 {[%emt 0:03:27]} 29. Nd2 {[%emt 0:01:23]} Ne6 {[%emt 0:02:36]} 30. Nf1 {[%emt 0:00:51]} Kf6 {[%emt 0:02:48]} 31. g4 {[%emt 0:01:39]} f4 {[%emt 0:06:45]} 32. Nd2 {[%emt 0:02:30]} Nc5 {[%emt 0:00:39]} 33. f3 {[%emt 0:07:06]} Rd8 {[%emt 0:05:57]} 34. b3 {[%emt 0:03:51]} h6 {[%emt 0:01:31]} 35. Rd1 {[%emt 0:02:01]} Ke7 {[%emt 0:01:05]} 36. b4 {[%emt 0:00:47]} Nb7 {[%emt 0:01:13]} 37. Re1 {[%emt 0:01:09]} Rd5 {[%emt 0:00:41]} 38. a4 {[%emt 0:01:18]} a5 {[%emt 0:02:40]} 39. axb5 {[%emt 0:00:42]} Rxb5 {[%emt 0:00:30]} 40. Nc4 {[%emt 0:02:37]} axb4 {[%emt 0:00:48]} 41. cxb4 {[%emt 0:00:01]} Ke6 {[%emt 0:00:34]} 42. Kc3 {[%emt 0:00:16]} Nd8 {[%emt 0:00:41]} 43. Nb2 {[%emt 0:01:14]} Nc6 {[%emt 0:00:29]} 44. Nd3 {[%emt 0:00:01]} Nd4 {[%emt 0:00:11]} 45. Kc4 {[%emt 0:00:11]} Rd5 {[%emt 0:00:50]} 46. Rd1 {[%emt 0:00:22]} Rd8 {[%emt 0:00:31]} 47. Nc5+ {[%emt 0:00:40]} Ke7 {[%emt 0:00:03]} 48. Rd3 {[%emt 0:00:07]} Ra8 {[%emt 0:01:03]} 49. Kd5 {[%emt 0:00:45]} Ra2 {[%emt 0:00:34]} 50. Kxe5 {[%emt 0:01:10]} Nc6+ {[%emt 0:00:04]} 51. Kf5 {[%emt 0:00:09]} Nxb4 {[%emt 0:00:05]} 52. Rd7+ {[%emt 0:00:16]} Ke8 {[%emt 0:00:05]} 53. Rb7 {[%emt 0:00:33]} Nc6 {[%emt 0:00:48]} 54. Ne4 {[%emt 0:01:14]} Nd4+ {[%emt 0:00:43]} 55. Kf6 {[%emt 0:00:36]} Ra6+ {[%emt 0:00:21]} 56. Kg7 {[%emt 0:00:34]} Nxf3 {[%emt 0:00:09]} 57. Rb8+ {[%emt 0:00:01]} Ke7 {[%emt 0:00:20]} 58. Rb7+ {[%emt 0:00:36]} Kd8 {[%emt 0:00:18]} 59. Rb8+ {[%emt 0:00:08]} Kc7 {[%emt 0:00:22]} 60. Rh8 {[%emt 0:00:08]} Nxh2 {[%emt 0:02:14]} 61. Rxh6 {[%emt 0:00:01]} Rxh6 {[%emt 0:00:32]} 62. Kxh6 {[%emt 0:00:09]} Kc6 {[%emt 0:00:29]} 63. Kxg5 {[%emt 0:00:12]} f3 {[%emt 0:00:26]} 64. Kf4 {[%emt 0:00:03]} Nxg4 {[%emt 0:00:30]} 65. Kxf3 {[%emt 0:00:04]} 1/2-1/2

[Event "Chinese Team-ch Men 2025"]
[Site "Zhang Jiakou Hebei"]
[Date "2025.04.29"]
[Round "5.27"]
[White "Zhang, Jingran"]
[Black "Yu, Zhenghuan"]
[Result "1-0"]
[Annotator "NA RC"]
[ECO "A11"]
[WhiteElo "1787"]
[BlackElo "1757"]
[PlyCount "101"]
[EventDate "2025.04.26"]
[EventType "team-tourn"]
[EventCountry "CHN"]
[SourceTitle "playchess.com"]
[Source "ChessBase"]
[SourceQuality "1"]
[TimeControl "5400+30"]

1. Nf3 {[%emt 0:00:08]} Nf6 {[%emt 0:00:16]} 2. c4 {[%emt 0:00:06]} c6 {[%emt 0:00:09]} 3. Nc3 {[%emt 0:00:05]} d5 {[%emt 0:00:08]} 4. e3 {[%emt 0:00:05]} e6 {[%emt 0:00:06]} 5. b3 {[%emt 0:00:08]} Nbd7 {[%emt 0:00:18]} 6. Qc2 {[%emt 0:00:15]} Bd6 {[%emt 0:00:20]} 7. Bb2 {[%emt 0:00:11]} O-O {[%emt 0:00:19]} 8. Be2 {[%emt 0:00:40]} Re8 {[%emt 0:00:43]} 9. O-O {[%emt 0:00:14]} b6 {[%emt 0:01:53]} 10. cxd5 {[%emt 0:05:08]} exd5 {[%emt 0:02:04]} 11. Nd4 {[%emt 0:11:36]} Bb7 {[%emt 0:13:08]} 12. Nf5 {[%emt 0:00:46]} Bf8 {[%emt 0:00:25]} 13. d4 {[%emt 0:03:15]} g6 {[%emt 0:03:07]} 14. Ng3 {[%emt 0:00:16]} Bd6 {[%emt 0:01:14]} 15. Bf3 {[%emt 0:00:35]} Rc8 {[%emt 0:02:17]} 16. Rad1 {[%emt 0:01:58]} h5 {[%emt 0:05:19]} 17. Rfe1 {[%emt 0:03:57]} Ng4 {[%emt 0:05:37]} 18. Nf1 {[%emt 0:03:46]} Ba6 {[%emt 0:04:10]} 19. h3 {[%emt 0:04:21]} Bxf1 {[%emt 0:00:49]} 20. hxg4 {[%emt 0:00:21]} hxg4 {[%emt 0:00:17]} 21. Kxf1 {[%emt 0:06:23]} gxf3 {[%emt 0:00:06]} 22. gxf3 {[%emt 0:00:03]} Qf6 {[%emt 0:07:58]} 23. Ke2 {[%emt 0:01:02]} Nf8 {[%emt 0:01:26]} 24. Rg1 {[%emt 0:05:12]} Ne6 {[%emt 0:01:04]} 25. Rg4 {[%emt 0:00:15]} Ng5 {[%emt 0:03:45]} 26. f4 {[%emt 0:00:24]} Bxf4 {[%emt 0:04:13]} 27. Rdg1 {[%emt 0:00:04]} Bxe3 {[%emt 0:10:23]} 28. fxe3 {[%emt 0:00:09]} Qf3+ {[%emt 0:00:43]} 29. Kd2 {[%emt 0:00:09]} Qxe3+ {[%emt 0:00:25]} 30. Kd1 {[%emt 0:00:06]} Ne4 {[%emt 0:00:19]} 31. Nxe4 {[%emt 0:00:49]} Rxe4 {[%emt 0:00:03]} 32. Rxe4 {[%emt 0:00:35]} Qxe4 {[%emt 0:02:02]} 33. Qxe4 {[%emt 0:00:53]} dxe4 {[%emt 0:00:06]} 34. Ke2 {[%emt 0:00:15]} Kf8 {[%emt 0:03:55]} 35. Ke3 {[%emt 0:00:41]} Ke7 {[%emt 0:01:19]} 36. Kxe4 {[%emt 0:00:26]} Rh8 {[%emt 0:00:14]} 37. Ba3+ {[%emt 0:01:46]} Ke6 {[%emt 0:01:02]} 38. Rg2 {[%emt 0:01:11]} Rh4+ {[%emt 0:01:34]} 39. Kd3 {[%emt 0:00:08]} Kd5 {[%emt 0:04:00]} 40. Rg5+ {[%emt 0:00:06]} f5 {[%emt 0:00:25]} 41. Rxg6 {[%emt 0:00:51]} Rxd4+ {[%emt 0:00:10]} 42. Kc3 {[%emt 0:00:43]} c5 {[%emt 0:00:41]} 43. Bc1 {[%emt 0:01:14]} Ke4 {[%emt 0:03:07]} 44. Rg7 {[%emt 0:01:20]} f4 {[%emt 0:04:58]} 45. Rxa7 {[%emt 0:00:43]} Kf3 {[%emt 0:07:38]} 46. Rf7 {[%emt 0:00:15]} b5 {[%emt 0:01:22]} 47. Rf5 {[%emt 0:02:09]} b4+ {[%emt 0:00:34]} 48. Kc2 {[%emt 0:00:08]} c4 {[%emt 0:00:48]} 49. Rxf4+ {[%emt 0:00:30]} Rxf4 {[%emt 0:00:05]} 50. Bxf4 {[%emt 0:00:05]} cxb3+ {[%emt 0:00:17]} 51. Kxb3 {[%emt 0:00:03]} 1-0

[Event "Chinese Team-ch Men 2025"]
[Site "Zhang Jiakou Hebei"]
[Date "2025.04.29"]
[Round "5.28"]
[White "Wu, Kaige"]
[Black "Zhang, Tiankun"]
[Result "1-0"]
[Annotator "NA RC"]
[ECO "B20"]
[WhiteElo "1753"]
[BlackElo "1581"]
[PlyCount "63"]
[EventDate "2025.04.26"]
[EventType "team-tourn"]
[EventCountry "CHN"]
[SourceTitle "playchess.com"]
[Source "ChessBase"]
[SourceQuality "1"]
[TimeControl "5400+30"]

1. e4 {[%emt 0:00:20]} c5 {[%emt 0:00:16]} 2. g3 {[%emt 0:00:21]} d5 {[%emt 0:00:28]} 3. exd5 {[%emt 0:00:11]} Qxd5 {[%emt 0:00:28]} 4. Nf3 {[%emt 0:00:17]} Nc6 {[%emt 0:01:03]} 5. d3 {[%emt 0:01:26]} Nd4 {[%emt 0:02:20]} 6. Bg2 {[%emt 0:15:42]} Bh3 {[%emt 0:03:28]} 7. O-O {[%emt 0:12:42]} Bxg2 {[%emt 0:07:30]} 8. Kxg2 {[%emt 0:00:19]} Nf6 {[%emt 0:06:39]} 9. Nbd2 {[%emt 0:08:31]} g6 {[%emt 0:15:04]} 10. Re1 {[%emt 0:01:19]} Bg7 {[%emt 0:04:21]} 11. c3 {[%emt 0:08:11]} Nf5 {[%emt 0:03:34]} 12. Qa4+ {[%emt 0:03:42]} Qd7 {[%emt 0:03:07]} 13. Qxd7+ {[%emt 0:01:19]} Nxd7 {[%emt 0:00:43]} 14. Ne4 {[%emt 0:01:24]} O-O {[%emt 0:03:02]} 15. a4 {[%emt 0:04:19]} b6 {[%emt 0:02:01]} 16. Bf4 {[%emt 0:02:06]} Nf6 {[%emt 0:04:17]} 17. Nxf6+ {[%emt 0:00:53]} Bxf6 {[%emt 0:02:32]} 18. g4 {[%emt 0:01:10]} Nh4+ {[%emt 0:03:34]} 19. Nxh4 {[%emt 0:00:17]} Bxh4 {[%emt 0:00:10]} 20. Kh3 {[%emt 0:08:41]} g5 {[%emt 0:02:29]} 21. Rxe7 {[%emt 0:01:47]} Rfe8 {[%emt 0:02:16]} 22. Rxe8+ {[%emt 0:02:10]} Rxe8 {[%emt 0:00:09]} 23. Be3 {[%emt 0:00:22]} Re6 {[%emt 0:01:10]} 24. a5 {[%emt 0:02:37]} Rf6 {[%emt 0:02:51]} 25. Kg2 {[%emt 0:01:13]} Kg7 {[%emt 0:01:40]} 26. axb6 {[%emt 0:00:33]} axb6 {[%emt 0:00:10]} 27. d4 {[%emt 0:01:09]} Rc6 {[%emt 0:03:18]} 28. Ra6 {[%emt 0:03:03]} c4 {[%emt 0:00:42]} 29. d5 {[%emt 0:00:27]} Rd6 {[%emt 0:00:30]} 30. Bd4+ {[%emt 0:00:04]} Kf8 {[%emt 0:00:44]} 31. Bc5 {[%emt 0:00:08]} bxc5 {[%emt 0:00:23]} 32. Rxd6 {[%emt 0:00:04]} 1-0

[Event "Chinese Team-ch Men 2025"]
[Site "Zhang Jiakou Hebei"]
[Date "2025.04.29"]
[Round "5.29"]
[White "Fan, Yupan"]
[Black "Cao, Qingfeng"]
[Result "0-1"]
[Annotator "RC"]
[ECO "E11"]
[WhiteElo "1527"]
[BlackElo "2443"]
[PlyCount "40"]
[EventDate "2025.04.26"]
[EventType "team-tourn"]
[EventCountry "CHN"]
[SourceTitle "playchess.com"]
[Source "ChessBase"]
[SourceQuality "1"]
[TimeControl "5400+30"]

1. d4 {[%emt 0:00:12]} Nf6 {[%emt 0:00:11]} 2. c4 {[%emt 0:00:06]} e6 {[%emt 0:00:06]} 3. g3 {[%emt 0:00:04]} d5 {[%emt 0:02:10]} 4. Bg2 {[%emt 0:00:05]} Bb4+ {[%emt 0:01:25]} 5. Bd2 {[%emt 0:01:33]} a5 {[%emt 0:00:08]} 6. a3 {[%emt 0:12:29]} Be7 {[%emt 0:06:40]} 7. Nf3 {[%emt 0:01:10]} O-O {[%emt 0:00:23]} 8. O-O {[%emt 0:00:21]} Nbd7 {[%emt 0:01:27]} 9. Qc2 {[%emt 0:03:06]} c6 {[%emt 0:00:38]} 10. c5 {[%emt 0:05:50]} b6 {[%emt 0:09:45]} 11. cxb6 {[%emt 0:05:27]} Qxb6 {[%emt 0:01:48]} 12. Nc3 {[%emt 0:00:56]} Ba6 {[%emt 0:01:13]} 13. Rfc1 {[%emt 0:00:44]} Rfc8 {[%emt 0:01:10]} 14. b4 {[%emt 0:32:21]} axb4 {[%emt 0:07:54]} 15. axb4 {[%emt 0:00:07]} Bc4 {[%emt 0:02:32]} 16. Na4 {[%emt 0:01:43]} Qb5 {[%emt 0:06:02]} 17. Be1 {[%emt 0:01:35]} Ra6 {[%emt 0:08:40]} 18. Nb2 {[%emt 0:03:28]} Bxe2 {[%emt 0:03:11]} 19. Na4 {[%emt 0:27:09]} Bd3 {[%emt 0:04:50]} 20. Qd1 {[%emt 0:00:13]} Ne4 {[%emt 0:01:48]} 0-1

[Event "Chinese Team-ch Men 2025"]
[Site "Zhang Jiakou Hebei"]
[Date "2025.04.29"]
[Round "5.33"]
[White "Ma, Lin"]
[Black "Yu, Shi"]
[Result "1/2-1/2"]
[Annotator "RC"]
[ECO "E20"]
[WhiteElo "2221"]
[BlackElo "1973"]
[PlyCount "63"]
[EventDate "2025.04.26"]
[EventType "team-tourn"]
[EventCountry "CHN"]
[SourceTitle "playchess.com"]
[Source "ChessBase"]
[SourceQuality "1"]
[TimeControl "5400+30"]

1. d4 {[%emt 0:00:05]} Nf6 {[%emt 0:00:08]} 2. c4 {[%emt 0:00:09]} e6 {[%emt 0:00:04]} 3. Nc3 {[%emt 0:00:05]} Bb4 {[%emt 0:00:11]} 4. Bd2 {[%emt 0:00:36]} c5 {[%emt 0:00:31]} 5. a3 {[%emt 0:02:37]} Bxc3 {[%emt 0:00:23]} 6. Bxc3 {[%emt 0:00:07]} Ne4 {[%emt 0:02:02]} 7. Qd3 {[%emt 0:00:31]} Nxc3 {[%emt 0:01:03]} 8. Qxc3 {[%emt 0:00:07]} Qf6 {[%emt 0:04:24]} 9. Nf3 {[%emt 0:02:15]} b6 {[%emt 0:08:38]} 10. e3 {[%emt 0:05:05]} Bb7 {[%emt 0:03:25]} 11. Be2 {[%emt 0:00:07]} cxd4 {[%emt 0:01:43]} 12. Qxd4 {[%emt 0:07:19]} Qxd4 {[%emt 0:03:09]} 13. Nxd4 {[%emt 0:00:04]} Ke7 {[%emt 0:04:58]} 14. Nb5 {[%emt 0:10:16]} Na6 {[%emt 0:10:22]} 15. O-O {[%emt 0:08:26]} Bc6 {[%emt 0:05:34]} 16. Rac1 {[%emt 0:08:46]} Rhc8 {[%emt 0:02:56]} 17. Nd4 {[%emt 0:00:56]} Bb7 {[%emt 0:01:59]} 18. f3 {[%emt 0:07:45]} d6 {[%emt 0:01:00]} 19. Rfd1 {[%emt 0:01:38]} Nc7 {[%emt 0:02:06]} 20. e4 {[%emt 0:01:58]} g6 {[%emt 0:04:05]} 21. Bd3 {[%emt 0:18:18]} e5 {[%emt 0:00:30]} 22. Ne2 {[%emt 0:01:47]} Ne6 {[%emt 0:05:21]} 23. Bb1 {[%emt 0:00:10]} Rc7 {[%emt 0:02:54]} 24. b3 {[%emt 0:03:14]} f6 {[%emt 0:02:23]} 25. Kf2 {[%emt 0:00:50]} a6 {[%emt 0:00:47]} 26. Ke3 {[%emt 0:04:02]} Rac8 {[%emt 0:03:09]} 27. g3 {[%emt 0:00:52]} Rf8 {[%emt 0:04:31]} 28. f4 {[%emt 0:02:00]} Rcc8 {[%emt 0:02:05]} 29. Rd2 {[%emt 0:01:35]} Nc5 {[%emt 0:01:07]} 30. Bc2 {[%emt 0:01:28]} Ne6 {[%emt 0:00:28]} 31. Rcd1 {[%emt 0:00:58]} Rfd8 {[%emt 0:00:18]} 32. Rc1 {[%emt 0:02:30]} 1/2-1/2

[Event "Chinese Team-ch Men 2025"]
[Site "Zhang Jiakou Hebei"]
[Date "2025.04.29"]
[Round "5.34"]
[White "Liu, Huaqi"]
[Black "Sun, Chao"]
[Result "1/2-1/2"]
[Annotator "RC"]
[ECO "A09"]
[WhiteElo "1816"]
[BlackElo "2211"]
[PlyCount "58"]
[EventDate "2025.04.26"]
[EventType "team-tourn"]
[EventCountry "CHN"]
[SourceTitle "playchess.com"]
[Source "ChessBase"]
[SourceQuality "1"]
[TimeControl "5400+30"]

1. Nf3 {[%emt 0:00:08]} Nf6 {[%emt 0:00:22]} 2. g3 {[%emt 0:00:50]} d5 {[%emt 0:00:25]} 3. Bg2 {[%emt 0:00:11]} e6 {[%emt 0:00:36]} 4. O-O {[%emt 0:00:32]} c5 {[%emt 0:00:13]} 5. c4 {[%emt 0:01:16]} d4 {[%emt 0:00:07]} 6. d3 {[%emt 0:01:04]} Nc6 {[%emt 0:00:10]} 7. e3 {[%emt 0:00:23]} Be7 {[%emt 0:09:49]} 8. exd4 {[%emt 0:00:43]} cxd4 {[%emt 0:00:04]} 9. Na3 {[%emt 0:00:56]} O-O {[%emt 0:01:11]} 10. Re1 {[%emt 0:00:47]} Nd7 {[%emt 0:02:51]} 11. Nc2 {[%emt 0:19:03]} e5 {[%emt 0:00:31]} 12. b4 {[%emt 0:08:28]} f6 {[%emt 0:33:02]} 13. Rb1 {[%emt 0:05:13]} a5 {[%emt 0:09:37]} 14. a3 {[%emt 0:02:18]} axb4 {[%emt 0:00:52]} 15. axb4 {[%emt 0:01:02]} Nb6 {[%emt 0:00:12]} 16. b5 {[%emt 0:18:44]} Nb8 {[%emt 0:01:31]} 17. Bd2 {[%emt 0:08:40]} N8d7 {[%emt 0:09:47]} 18. Bb4 {[%emt 0:00:30]} Bxb4 {[%emt 0:00:09]} 19. Nxb4 {[%emt 0:00:08]} Nc5 {[%emt 0:00:09]} 20. Nd2 {[%emt 0:02:53]} Bf5 {[%emt 0:02:58]} 21. Nb3 {[%emt 0:03:01]} Nbd7 {[%emt 0:03:12]} 22. Nxc5 {[%emt 0:06:05]} Nxc5 {[%emt 0:00:04]} 23. Bd5+ {[%emt 0:00:22]} Kh8 {[%emt 0:00:41]} 24. Qf3 {[%emt 0:01:16]} Qd7 {[%emt 0:00:20]} 25. Ra1 {[%emt 0:01:44]} Bg4 {[%emt 0:00:29]} 26. Qg2 {[%emt 0:00:22]} Bh3 {[%emt 0:00:25]} 27. Qf3 {[%emt 0:01:25]} Bg4 {[%emt 0:01:38]} 28. Qg2 {[%emt 0:00:06]} Bh3 {[%emt 0:06:45]} 29. Qf3 {[%emt 0:00:08]} Bg4 {[%emt 0:01:00]} 1/2-1/2

[Event "Chinese Team-ch Men 2025"]
[Site "Zhang Jiakou Hebei"]
[Date "2025.04.30"]
[Round "6.1"]
[White "Bai, Jinshi"]
[Black "Wen, Yang"]
[Result "1/2-1/2"]
[Annotator "ChessBase"]
[ECO "A13"]
[WhiteElo "2569"]
[BlackElo "2572"]
[PlyCount "64"]
[EventDate "2025.04.26"]
[EventType "team-tourn"]
[EventCountry "CHN"]
[SourceTitle "playchess.com"]
[Source "ChessBase"]
[SourceQuality "1"]
[TimeControl "5400+30"]

1. c4 {[%emt 0:00:07]} e6 {[%emt 0:00:45]} 2. Nf3 {[%emt 0:02:09]} Nf6 {[%emt 0:00:22]} 3. b3 {[%emt 0:01:30]} d5 {[%emt 0:06:24]} 4. e3 {[%emt 0:01:37]} c5 {[%emt 0:00:37]} 5. cxd5 {[%emt 0:06:02]} exd5 {[%emt 0:00:06]} 6. Bb5+ {[%emt 0:00:12]} Bd7 {[%emt 0:09:49]} 7. Bxd7+ {[%emt 0:01:18]} Nbxd7 {[%emt 0:00:06]} 8. O-O {[%emt 0:04:54]} g6 {[%emt 0:03:38]} 9. d4 {[%emt 0:03:04]} Bg7 {[%emt 0:01:51]} 10. Nc3 {[%emt 0:04:40]} O-O {[%emt 0:00:31]} 11. Bb2 {[%emt 0:00:33]} Rc8 {[%emt 0:11:31]} 12. Rc1 {[%emt 0:05:04]} a6 {[%emt 0:00:39]} 13. Rc2 {[%emt 0:09:27]} cxd4 {[%emt 0:07:44]} 14. Nxd4 {[%emt 0:00:15]} Nc5 {[%emt 0:00:38]} 15. Qe2 {[%emt 0:04:50]} Qd7 {[%emt 0:03:36]} 16. Rfc1 {[%emt 0:04:26]} Rfd8 {[%emt 0:00:32]} 17. h3 {[%emt 0:07:56]} Nfe4 {[%emt 0:13:47]} 18. Nxe4 {[%emt 0:04:10]} Nxe4 {[%emt 0:00:11]} 19. Qg4 {[%emt 0:00:07]} Rxc2 {[%emt 0:17:03]} 20. Rxc2 {[%emt 0:00:06]} f5 {[%emt 0:00:43]} 21. Qe2 {[%emt 0:03:59]} Rc8 {[%emt 0:00:46]} 22. Rxc8+ {[%emt 0:02:14]} Qxc8 {[%emt 0:00:06]} 23. Nf3 {[%emt 0:00:11]} Bxb2 {[%emt 0:04:48]} 24. Qxb2 {[%emt 0:00:36]} Qc3 {[%emt 0:00:04]} 25. Qe2 {[%emt 0:01:56]} Qc1+ {[%emt 0:02:59]} 26. Kh2 {[%emt 0:00:07]} f4 {[%emt 0:00:39]} 27. exf4 {[%emt 0:00:37]} Qxf4+ {[%emt 0:00:05]} 28. Kg1 {[%emt 0:01:48]} Qc1+ {[%emt 0:00:06]} 29. Kh2 {[%emt 0:00:23]} Qc7+ {[%emt 0:00:21]} 30. Kg1 {[%emt 0:00:27]} Qc1+ {[%emt 0:00:06]} 31. Kh2 {[%emt 0:00:59]} Qc7+ {[%emt 0:01:11]} 32. Kg1 {[%emt 0:03:49]} Qc1+ {[%emt 0:00:08]} 1/2-1/2

[Event "Chinese Team-ch Men 2025"]
[Site "Zhang Jiakou Hebei"]
[Date "2025.04.30"]
[Round "6.2"]
[White "Zhao, Jun"]
[Black "Kong, Xiangrui"]
[Result "1-0"]
[Annotator "ChessBase"]
[ECO "C48"]
[WhiteElo "2532"]
[BlackElo "2451"]
[PlyCount "107"]
[EventDate "2025.04.26"]
[EventType "team-tourn"]
[EventCountry "CHN"]
[SourceTitle "playchess.com"]
[Source "ChessBase"]
[SourceQuality "1"]
[TimeControl "5400+30"]

1. e4 {[%emt 0:00:08]} e5 {[%emt 0:00:06]} 2. Nf3 {[%emt 0:00:25]} Nc6 {[%emt 0:00:07]} 3. Nc3 {[%emt 0:00:41]} Nf6 {[%emt 0:00:17]} 4. Bb5 {[%emt 0:00:18]} Bc5 {[%emt 0:03:21]} 5. d3 {[%emt 0:06:05]} Nd4 {[%emt 0:02:11]} 6. Nxd4 {[%emt 0:12:09]} Bxd4 {[%emt 0:01:53]} 7. O-O {[%emt 0:07:25]} O-O {[%emt 0:00:37]} 8. Ne2 {[%emt 0:02:09]} Bb6 {[%emt 0:00:23]} 9. Ng3 {[%emt 0:00:38]} c6 {[%emt 0:03:44]} 10. Ba4 {[%emt 0:00:06]} d5 {[%emt 0:01:08]} 11. h3 {[%emt 0:04:36]} dxe4 {[%emt 0:08:27]} 12. dxe4 {[%emt 0:00:11]} Qxd1 {[%emt 0:00:26]} 13. Rxd1 {[%emt 0:00:04]} Be6 {[%emt 0:01:08]} 14. Bb3 {[%emt 0:02:27]} a5 {[%emt 0:14:16]} 15. Kf1 {[%emt 0:03:18]} Rfe8 {[%emt 0:01:29]} 16. Bg5 {[%emt 0:13:54]} a4 {[%emt 0:00:48]} 17. Bxe6 {[%emt 0:00:09]} Rxe6 {[%emt 0:01:38]} 18. Rd3 {[%emt 0:07:14]} h6 {[%emt 0:07:11]} 19. Bxf6 {[%emt 0:01:32]} Rxf6 {[%emt 0:00:02]} 20. Nf5 {[%emt 0:01:18]} Kh7 {[%emt 0:16:46]} 21. Ke2 {[%emt 0:08:11]} g6 {[%emt 0:03:18]} 22. Ne3 {[%emt 0:00:44]} Bd4 {[%emt 0:08:47]} 23. c3 {[%emt 0:06:04]} Bxe3 {[%emt 0:00:04]} 24. Kxe3 {[%emt 0:00:05]} c5 {[%emt 0:09:26]} 25. Rd7 {[%emt 0:04:00]} c4 {[%emt 0:00:16]} 26. a3 {[%emt 0:10:36]} Rb6 {[%emt 0:06:05]} 27. Rad1 {[%emt 0:00:04]} Rxb2 {[%emt 0:01:19]} 28. Rxf7+ {[%emt 0:00:04]} Kg8 {[%emt 0:00:01]} 29. Rdd7 {[%emt 0:01:07]} Rd8 {[%emt 0:01:11]} 30. Rg7+ {[%emt 0:00:52]} Kf8 {[%emt 0:01:38]} 31. Rdf7+ {[%emt 0:00:08]} Ke8 {[%emt 0:00:01]} 32. Re7+ {[%emt 0:01:06]} Kf8 {[%emt 0:00:02]} 33. Ref7+ {[%emt 0:02:00]} Ke8 {[%emt 0:00:01]} 34. Kf3 {[%emt 0:03:29]} Rd3+ {[%emt 0:00:09]} 35. Kg4 {[%emt 0:00:04]} Re2 {[%emt 0:00:04]} 36. f3 {[%emt 0:03:00]} Rxg2+ {[%emt 0:00:10]} 37. Kh4 {[%emt 0:00:03]} Rgd2 {[%emt 0:08:08]} 38. Rxb7 {[%emt 0:01:02]} Rd7 {[%emt 0:00:06]} 39. Rb8+ {[%emt 0:00:45]} Rd8 {[%emt 0:00:01]} 40. Rb5 {[%emt 0:00:51]} R2d3 {[%emt 0:02:43]} 41. Kg3 {[%emt 0:01:05]} Kf8 {[%emt 0:00:25]} 42. Rxg6 {[%emt 0:00:10]} Rxc3 {[%emt 0:00:05]} 43. Rxe5 {[%emt 0:00:23]} Rxa3 {[%emt 0:00:44]} 44. Rxh6 {[%emt 0:00:04]} Rdd3 {[%emt 0:00:29]} 45. Rf5+ {[%emt 0:00:20]} Ke7 {[%emt 0:00:55]} 46. Rc6 {[%emt 0:00:23]} c3 {[%emt 0:00:30]} 47. h4 {[%emt 0:00:59]} Rb3 {[%emt 0:00:25]} 48. h5 {[%emt 0:01:10]} a3 {[%emt 0:00:43]} 49. h6 {[%emt 0:00:43]} Rd6 {[%emt 0:00:41]} 50. h7 {[%emt 0:00:00]} Rd8 {[%emt 0:00:33]} 51. Ra5 {[%emt 0:00:16]} Rh8 {[%emt 0:00:17]} 52. Ra7+ {[%emt 0:00:12]} Kd8 {[%emt 0:00:04]} 53. Ra8+ {[%emt 0:00:08]} Kd7 {[%emt 0:00:35]} 54. Rxh8 {[%emt 0:00:05]} 1-0

[Event "Chinese Team-ch Men 2025"]
[Site "Zhang Jiakou Hebei"]
[Date "2025.04.30"]
[Round "6.3"]
[White "Xie, Kaifan"]
[Black "Xiao, Tong"]
[Result "1/2-1/2"]
[Annotator "ChessBase"]
[ECO "E04"]
[WhiteElo "2435"]
[BlackElo "2496"]
[PlyCount "71"]
[EventDate "2025.04.26"]
[EventType "team-tourn"]
[EventCountry "CHN"]
[SourceTitle "playchess.com"]
[Source "ChessBase"]
[SourceQuality "1"]
[TimeControl "5400+30"]

1. d4 {[%emt 0:00:12]} Nf6 {[%emt 0:00:07]} 2. c4 {[%emt 0:00:21]} e6 {[%emt 0:00:13]} 3. Nf3 {[%emt 0:00:15]} d5 {[%emt 0:00:10]} 4. g3 {[%emt 0:00:58]} dxc4 {[%emt 0:04:38]} 5. Bg2 {[%emt 0:00:09]} Nc6 {[%emt 0:01:08]} 6. Qa4 {[%emt 0:03:46]} Bb4+ {[%emt 0:00:26]} 7. Bd2 {[%emt 0:01:47]} Nd5 {[%emt 0:00:29]} 8. Bxb4 {[%emt 0:01:44]} Ndxb4 {[%emt 0:00:08]} 9. O-O {[%emt 0:01:09]} Rb8 {[%emt 0:01:30]} 10. Na3 {[%emt 0:04:51]} O-O {[%emt 0:02:10]} 11. Qb5 {[%emt 0:02:02]} b6 {[%emt 0:01:33]} 12. Qxc4 {[%emt 0:02:03]} Ba6 {[%emt 0:01:01]} 13. Nb5 {[%emt 0:04:02]} Qe8 {[%emt 0:00:36]} 14. Rfc1 {[%emt 0:01:45]} Nd5 {[%emt 0:01:03]} 15. Qxc6 {[%emt 0:11:50]} Qxc6 {[%emt 0:00:20]} 16. Rxc6 {[%emt 0:00:06]} Bxb5 {[%emt 0:00:06]} 17. Rc2 {[%emt 0:00:16]} Rfc8 {[%emt 0:01:33]} 18. Ne5 {[%emt 0:04:25]} c5 {[%emt 0:01:11]} 19. dxc5 {[%emt 0:01:25]} Rxc5 {[%emt 0:05:15]} 20. Rxc5 {[%emt 0:02:32]} bxc5 {[%emt 0:00:25]} 21. Rc1 {[%emt 0:00:08]} f6 {[%emt 0:06:15]} 22. Bh3 {[%emt 0:07:51]} Rb6 {[%emt 0:02:14]} 23. Nc4 {[%emt 0:00:57]} Bxc4 {[%emt 0:02:16]} 24. Rxc4 {[%emt 0:00:10]} Nb4 {[%emt 0:06:26]} 25. a3 {[%emt 0:07:52]} Na6 {[%emt 0:00:56]} 26. Rc2 {[%emt 0:05:38]} Kf7 {[%emt 0:00:23]} 27. f4 {[%emt 0:02:55]} Ke7 {[%emt 0:01:51]} 28. Kf2 {[%emt 0:00:32]} g6 {[%emt 0:00:31]} 29. Bf1 {[%emt 0:01:45]} Kd6 {[%emt 0:00:26]} 30. Rd2+ {[%emt 0:01:06]} Ke7 {[%emt 0:00:11]} 31. Rc2 {[%emt 0:00:05]} Kd6 {[%emt 0:00:14]} 32. e4 {[%emt 0:04:26]} Nc7 {[%emt 0:01:16]} 33. Rd2+ {[%emt 0:02:39]} Ke7 {[%emt 0:00:08]} 34. Rc2 {[%emt 0:07:42]} Kd6 {[%emt 0:00:06]} 35. Rd2+ {[%emt 0:02:54]} Ke7 {[%emt 0:00:09]} 36. Rc2 {[%emt 0:11:50]} 1/2-1/2